bitfinex/quotes_SOLUSD_20230105
["timestamp","ask_amount","ask_price","bid_price","bid_amount"]
[1672908740019,20.54854579,13.206,13.204,1975.0]
[1672908740344,20.0,13.205,13.204,1975.0]
[1672908740758,40.54854579,13.205,13.204,1975.0]
[1672908742236,40.54854579,13.205,13.204,1939.557]
[1672908742444,199.97862575,13.205,13.204,1939.557]
[1672908742655,252.75088801,13.205,13.204,1939.557]
[1672908742871,252.75088801,13.205,13.204,1892.9237]
[1672908743082,232.75088801,13.205,13.204,1892.9237]
[1672908743608,232.75088801,13.205,13.204,1885.1034]
[1672908744233,232.75088801,13.205,13.204,1799.8915]
[1672908746134,187.31088801,13.205,13.204,1799.8915]
[1672908747075,148.15663072,13.205,13.204,1799.8915]
[1672908747393,95.38436846,13.205,13.204,1799.8915]
[1672908748015,40.54854579,13.205,13.204,1799.8915]
[1672908750222,40.54854579,13.205,13.199,20.0]
[1672908750434,40.54854579,13.205,13.198,1799.8915]
[1672908752864,40.54854579,13.205,13.199,20.0]
[1672908753723,40.54854579,13.205,13.198,1799.8915]
[1672908753907,40.54854579,13.205,13.199,20.0]
[1672908755501,20.0,13.205,13.201,20.0]
[1672908755720,40.54854579,13.209,13.201,20.0]
[1672908755924,40.54854579,13.209,13.203,20.0]
[1672908756244,40.54854579,13.209,13.204,1799.8915]
[1672908758005,62.17145696,13.209,13.204,1799.8915]
[1672908758217,91.74436846,13.209,13.204,1799.8915]
[1672908762528,137.18436846,13.209,13.204,1799.8915]
[1672908763690,91.74436846,13.209,13.208,1799.8915]
[1672908764014,91.74436846,13.209,13.208,1623.40489062]
[1672908764422,91.74436846,13.209,13.208,1563.28489062]
[1672908764855,40.54854579,13.209,13.208,1563.28489062]
[1672908765483,20.0,13.209,13.208,1563.28489062]
[1672908780839,0.0077,13.209,13.208,1563.28489062]
[1672908781048,51.19582267,13.214,13.209,20.0]
[1672908781244,21.15946623,13.213,13.209,20.0]
[1672908782308,20.0,13.212,13.209,20.0]
[1672908784727,20.0,13.212,13.208,1563.28489062]
[1672908784936,41.15946623,13.212,13.208,1563.28489062]
[1672908787155,41.15946623,13.212,13.211,1563.28489062]
[1672908790607,92.3552889,13.212,13.211,1563.28489062]
[1672908790919,137.8052889,13.212,13.211,1563.28489062]
[1672908791675,137.8052889,13.212,13.211,1499.45529062]
[1672908791869,137.8052889,13.212,13.211,1319.53936797]
[1672908792078,232.18905713,13.212,13.211,1319.53936797]
[1672908794705,232.18905713,13.212,13.211,1195.83255222]
[1672908797460,232.18905713,13.212,13.211,1158.46278496]
[1672908798505,186.73905713,13.212,13.211,1158.46278496]
[1672908800621,186.73905713,13.212,13.2,1158.46278496]
[1672908800838,32.58,13.21,13.201,76.85]
[1672908801026,20.0,13.209,13.201,76.85]
[1672908801236,41.15946623,13.209,13.201,56.85]
[1672908801456,51.19582267,13.208,13.201,56.85]
[1672908801676,20.0,13.207,13.201,56.85]
[1672908801866,41.15946623,13.207,13.201,56.85]
[1672908802073,21.15946623,13.206,13.201,56.85]
[1672908802310,20.0,13.205,13.201,56.85]
[1672908802825,40.58218717,13.205,13.201,56.85]
[1672908803879,91.77800984,13.205,13.201,56.85]
[1672908805464,91.77800984,13.205,13.2,1158.46278496]
[1672908812712,131.97985598,13.205,13.2,1158.46278496]
[1672908812912,50.15931731,13.204,13.2,1158.46278496]
[1672908813121,20.0,13.203,13.2,1158.46278496]
[1672908813441,89.26040941,13.203,13.2,1158.46278496]
[1672908813656,115.6587342,13.202,13.2,1158.46278496]
[1672908813850,20.0,13.201,13.2,1158.46278496]
[1672908814062,40.58218717,13.201,13.2,1158.46278496]
[1672908825321,135.6587342,13.201,13.2,1158.46278496]
[1672908825658,188.71172299,13.201,13.2,1158.46278496]
[1672908828049,188.71172299,13.201,13.19,56.9]
[1672908828259,95.94203863,13.2,13.19,56.9]
[1672908828578,63.33203863,13.198,13.19,56.9]
[1672908828795,63.33203863,13.196,13.19,56.9]
[1672908829008,20.0,13.195,13.191,20.0]
[1672908829194,32.61,13.2,13.193,20.0]
[1672908829406,32.61,13.2,13.194,56.88]
[1672908830471,84.71136756,13.2,13.194,56.88]
[1672908830891,84.71136756,13.2,13.193,20.0]
[1672908831103,84.71136756,13.2,13.194,56.88]
[1672908831429,20.0,13.199,13.194,56.88]
[1672908831825,40.58218717,13.199,13.194,56.88]
[1672908832167,72.68355473,13.198,13.192,56.89]
[1672908832362,20.0,13.197,13.192,56.89]
[1672908833949,20.0,13.197,13.192,20.0]
[1672908834265,20.0,13.197,13.193,56.89]
[1672908834785,20.0,13.197,13.191,56.9]
[1672908835735,72.10136756,13.197,13.191,56.9]
[1672908835946,72.10136756,13.197,13.191,20.0]
[1672908836153,72.10136756,13.197,13.192,56.89]
[1672908836776,72.10136756,13.197,13.191,56.9]
[1672908836995,72.10136756,13.197,13.192,20.0]
[1672908840574,72.10136756,13.197,13.194,20.0]
[1672908840762,72.10136756,13.197,13.196,1158.462784]
[1672908844020,42.97517947,13.201,13.197,20.0]
[1672908844232,45.42,13.208,13.197,20.0]
[1672908844442,52.10136756,13.204,13.197,134.7736]
[1672908845406,20.0,13.203,13.199,20.0]
[1672908846569,20.0,13.208,13.199,20.0]
[1672908846881,45.43,13.207,13.199,20.0]
[1672908847070,20.0,13.206,13.199,20.0]
[1672908847487,20.0,13.208,13.199,20.0]
[1672908847698,45.43,13.207,13.199,20.0]
[1672908847929,20.0,13.206,13.199,20.0]
[1672908848336,20.0,13.206,13.197,134.7736]
[1672908848547,20.0,13.208,13.197,134.7736]
[1672908848747,45.44,13.207,13.197,134.7736]
[1672908848958,20.0,13.206,13.197,134.7736]
[1672908849189,20.0,13.206,13.197,114.7736]
[1672908849382,95.16166896,13.205,13.197,114.7736]
[1672908849587,20.0,13.204,13.197,114.7736]
[1672908850032,69.72166896,13.204,13.197,114.7736]
[1672908853718,20.58218717,13.203,13.197,114.7736]
[1672908854025,20.0,13.202,13.197,114.7736]
[1672908854546,20.58218717,13.201,13.197,114.7736]
[1672908855078,20.0,13.2,13.197,114.7736]
[1672908855691,40.58218717,13.2,13.197,114.7736]
[1672908856553,49.72166896,13.204,13.2,1117.88059683]
[1672908856966,70.30385613,13.204,13.2,1117.88059683]
[1672908858557,20.0,13.203,13.2,1117.88059683]
[1672908858871,40.58218717,13.203,13.2,1117.88059683]
[1672908859271,90.30385613,13.203,13.2,1117.88059683]
[1672908860123,45.44,13.202,13.2,1117.88059683]
[1672908860332,20.0,13.201,13.2,1117.88059683]
[1672908860546,39.45502701,13.201,13.2,1117.88059683]
[1672908860869,89.17669597,13.201,13.2,1117.88059683]
[1672908864225,128.7247525,13.201,13.2,1117.88059683]
[1672908864418,174.1647525,13.201,13.2,1117.88059683]
[1672908865048,128.7247525,13.201,13.2,1117.88059683]
[1672908869795,128.7247525,13.201,13.2,985.46591352]
[1672908873169,109.26972549,13.201,13.2,985.46591352]
[1672908873500,69.72166896,13.201,13.2,985.46591352]
[1672908884224,109.70305883,13.201,13.2,985.46591352]
[1672908884623,129.15808584,13.201,13.2,985.46591352]
[1672908885903,182.15182911,13.201,13.2,985.46591352]
[1672908898412,182.15182911,13.201,13.2,982.56531352]
[1672908908598,182.15182911,13.201,13.2,957.56531352]
[1672908908804,227.60182911,13.201,13.2,957.56531352]
[1672908909243,208.1468021,13.201,13.2,957.56531352]
[1672908909452,162.6968021,13.201,13.2,957.56531352]
[1672908912602,182.09603689,13.201,13.2,957.56531352]
[1672908923437,142.11464702,13.201,13.2,957.56531352]
[1672908925428,182.09603689,13.201,13.2,957.56531352]
[1672908934380,182.09603689,13.201,13.2,897.71748142]
[1672908938046,132.37436793,13.201,13.2,897.71748142]
[1672908941324,132.37436793,13.201,13.2,897.65748142]
[1672908941512,112.97513314,13.201,13.192,56.89]
[1672908941718,32.45,13.2,13.192,56.89]
[1672908941935,20.0,13.199,13.192,56.89]
[1672908945312,20.0,13.199,13.192,954.547482]
[1672908947833,60.06198987,13.199,13.192,954.547482]
[1672908948071,113.05573314,13.199,13.192,897.657482]
[1672908948983,113.05573314,13.199,13.192,954.547482]
[1672908949515,113.05573314,13.199,13.192,56.89]
[1672908950353,60.06198987,13.199,13.192,56.89]
[1672908952146,20.0,13.199,13.192,56.89]
[1672908964024,20.0,13.199,13.191,119.9721]
[1672908964549,20.0,13.197,13.191,119.9721]
[1672908964741,20.0,13.196,13.191,119.9721]
[1672908965278,20.0,13.196,13.191,500.0]
[1672908969831,60.06198987,13.196,13.191,500.0]
[1672908970464,60.06198987,13.196,13.195,500.0]
[1672908973832,106.71959802,13.196,13.195,500.0]
[1672908976558,126.11883281,13.196,13.195,500.0]
[1672908978216,118.6011,13.209,13.195,500.0]
[1672908978217,45.42,13.204,13.196,20.0]
[1672908978426,19.39923479,13.199,13.195,500.0]
[1672908980329,20.0,13.198,13.195,500.0]
[1672908983069,14.2947,13.198,13.195,500.0]
[1672908983263,18.33717961,13.202,13.196,20.0]
[1672908983684,18.33717961,13.202,13.196,76.87]
[1672908984764,18.33717961,13.202,13.196,56.87]
[1672908984966,48.0736766,13.205,13.196,56.87]
[1672908985285,45.43,13.204,13.196,56.87]
[1672908985489,20.0,13.203,13.196,56.87]
[1672908985683,20.0,13.203,13.197,20.0]
[1672908985893,20.0,13.204,13.197,20.0]
[1672908986419,18.33717961,13.203,13.197,20.0]
[1672908986632,18.33717961,13.203,13.196,56.87]
[1672908986856,20.0,13.202,13.196,56.87]
[1672908993787,38.33717961,13.202,13.196,56.87]
[1672908993998,38.33717961,13.202,13.195,500.0]
[1672908996522,20.0,13.202,13.197,20.0]
[1672908996718,20.0,13.206,13.198,56.87]
[1672908996934,20.0,13.206,13.199,20.0]
[1672908999554,20.0,13.206,13.198,56.87]
[1672909000093,18.33717961,13.205,13.198,56.87]
[1672909000301,20.0,13.204,13.198,56.87]
[1672909000630,18.33717961,13.203,13.198,20.0]
[1672909000937,20.0,13.202,13.199,56.86]
[1672909001546,20.0,13.202,13.199,20.0]
[1672909002195,20.0,13.202,13.198,56.87]
[1672909003039,20.0,13.202,13.199,20.0]
[1672909003248,18.33717961,13.206,13.199,20.0]
[1672909003455,20.0,13.205,13.2,56.86]
[1672909004299,20.0,13.205,13.199,20.0]
[1672909005056,20.0,13.205,13.198,56.87]
[1672909006932,18.33717961,13.204,13.197,56.87]
[1672909007140,20.0,13.203,13.197,56.87]
[1672909007668,18.33717961,13.202,13.197,56.87]
[1672909007881,20.0,13.201,13.197,56.87]
[1672909008289,18.33717961,13.2,13.197,56.87]
[1672909008519,20.0,13.199,13.197,56.87]
[1672909008913,18.33717961,13.198,13.197,56.87]
[1672909009124,20.0,13.199,13.197,56.87]
[1672909009337,20.0,13.206,13.198,20.0]
[1672909009561,20.0,13.207,13.199,38.52282039]
[1672909009966,18.33717961,13.205,13.199,38.52282039]
[1672909010173,20.0,13.204,13.198,56.87]
[1672909010724,18.33717961,13.203,13.198,56.87]
[1672909011136,20.0,13.202,13.198,56.87]
[1672909011550,18.33717961,13.201,13.198,20.0]
[1672909011766,20.0,13.2,13.199,56.86]
[1672909012180,20.0,13.2,13.198,56.87]
[1672909012387,20.0,13.207,13.198,56.87]
[1672909012611,17.33304082,13.204,13.2,500.0]
[1672909013023,20.0,13.203,13.2,500.0]
[1672909013459,37.33304082,13.203,13.2,500.0]
[1672909014502,16.0411013,13.216,13.201,20.0]
[1672909014718,6.52,13.21,13.203,20.0]
[1672909015029,6.52,13.21,13.201,20.0]
[1672909015030,32.56,13.21,13.204,129.9961729]
[1672909015257,49.89304082,13.21,13.204,73.1561729]
[1672909015435,49.89304082,13.21,13.203,52.53252011]
[1672909015655,49.89304082,13.21,13.203,32.53252011]
[1672909016398,20.0,13.209,13.203,32.53252011]
[1672909016609,20.0,13.209,13.201,89.38252011]
[1672909016819,16.38360074,13.208,13.201,89.38252011]
[1672909017134,20.0,13.207,13.201,89.38252011]
[1672909017556,16.38360074,13.206,13.197,56.87]
[1672909017766,20.0,13.205,13.198,20.0]
[1672909017977,20.0,13.205,13.2,20.0]
[1672909018190,36.38360074,13.205,13.201,56.85]
[1672909019778,36.38360074,13.205,13.199,56.86]
[1672909019991,36.38360074,13.205,13.201,897.657482]
[1672909020200,36.38360074,13.205,13.202,7.19315654]
[1672909020412,36.38360074,13.205,13.202,27.19315654]
[1672909022615,36.38360074,13.205,13.202,7.19315654]
[1672909023245,36.38360074,13.205,13.202,27.19315654]
[1672909023780,36.38360074,13.205,13.204,897.657482]
[1672909025542,36.38360074,13.205,13.204,904.48334208]
[1672909026488,36.38360074,13.205,13.204,897.657482]
[1672909035336,56.15007721,13.205,13.204,897.657482]
[1672909037537,151.27893953,13.205,13.204,756.42132173]
[1672909038061,185.523673,13.205,13.204,699.5546002]
[1672909039222,185.523673,13.205,13.204,549.5546002]
[1672909039431,185.523673,13.205,13.204,539.0958002]
[1672909040257,185.523673,13.205,13.204,345.10367753]
[1672909040469,185.523673,13.205,13.204,304.33376194]
[1672909040887,185.523673,13.205,13.204,284.33376194]
[1672909041098,20.0,13.204,13.189,173.2438]
[1672909041308,20.0,13.199,13.189,173.2438]
[1672909041632,20.0,13.198,13.189,173.2438]
[1672909041840,85.46636148,13.198,13.189,173.2438]
[1672909042052,16.38360074,13.197,13.189,173.2438]
[1672909042249,65.46636148,13.197,13.189,173.2438]
[1672909042459,20.0,13.196,13.189,173.2438]
[1672909042692,36.38360074,13.196,13.189,173.2438]
[1672909042883,16.38360074,13.195,13.189,173.2438]
[1672909043096,20.0,13.194,13.189,173.2438]
[1672909043318,69.08276074,13.194,13.189,116.3438]
[1672909043510,16.38360074,13.193,13.189,116.3438]
[1672909043721,20.0,13.192,13.189,116.3438]
[1672909044052,16.38360074,13.191,13.189,116.3438]
[1672909044375,20.0,13.19,13.189,116.3438]
[1672909044681,20.0,13.19,13.183,56.93]
[1672909044897,16.38360074,13.19,13.184,108.6098]
[1672909045089,20.0,13.189,13.185,56.92]
[1672909045513,36.38360074,13.189,13.185,56.92]
[1672909048999,36.38360074,13.189,13.185,341.253762]
[1672909049924,89.31,13.2,13.186,20.0]
[1672909050260,16.38360074,13.192,13.188,20.0]
[1672909050457,12.78090074,13.192,13.19,20.0]
[1672909050655,48.78594813,13.196,13.19,20.0]
[1672909050870,7.8534,13.193,13.19,20.0]
[1672909051089,48.78594813,13.196,13.19,20.0]
[1672909051313,20.0,13.195,13.19,20.0]
[1672909052041,48.78594813,13.195,13.192,20.0]
[1672909052264,20.0,13.194,13.191,56.9]
[1672909052447,20.0,13.194,13.189,56.9]
[1672909052657,6.47,13.2,13.19,20.0]
[1672909052991,21.52706071,13.2,13.192,20.0]
[1672909053200,21.52706071,13.2,13.194,20.0]
[1672909053408,21.52706071,13.2,13.195,56.88]
[1672909053604,15.05706071,13.2,13.196,20.0]
[1672909053812,15.05706071,13.2,13.198,20.0]
[1672909054563,6.071e-05,13.2,13.198,20.0]
[1672909055093,56.82,13.208,13.197,56.87]
[1672909055285,30.326983,13.201,13.197,56.87]
[1672909055503,30.326983,13.201,13.199,284.333762]
[1672909056340,20.0,13.2,13.199,284.333762]
[1672909060239,30.326983,13.201,13.2,20.0]
[1672909060645,30.326983,13.201,13.199,284.333762]
[1672909060855,8.3e-05,13.201,13.2,20.0]
[1672909061295,96.58091587,13.204,13.199,284.333762]
[1672909062552,20.0,13.203,13.199,284.333762]
[1672909068451,47.9306766,13.203,13.199,284.333762]
[1672909068667,20.0,13.202,13.199,284.333762]
[1672909069281,34.23248116,13.202,13.199,284.333762]
[1672909069485,82.16315776,13.202,13.199,284.333762]
[1672909074535,82.16315776,13.202,13.199,275.375562]
[1672909074855,20.0,13.2,13.199,275.375562]
[1672909075069,76.86,13.2,13.199,275.375562]
[1672909075390,179.82874778,13.2,13.199,250.375562]
[1672909077571,108.73626662,13.2,13.199,250.375562]
[1672909077783,67.9306766,13.2,13.199,250.375562]
[1672909078225,20.0,13.2,13.199,250.375562]
[1672909078747,34.23248116,13.2,13.199,250.375562]
[1672909078955,82.16315776,13.2,13.199,250.375562]
[1672909081786,122.96874778,13.2,13.199,250.375562]
[1672909083584,122.96874778,13.2,13.199,242.243162]
[1672909083985,179.82874778,13.2,13.199,242.243162]
[1672909085686,122.96874778,13.2,13.199,242.243162]
[1672909089697,108.73626662,13.2,13.199,242.243162]
[1672909093991,67.9306766,13.2,13.199,242.243162]
[1672909097348,67.9306766,13.2,13.199,217.243162]
[1672909097349,82.16315776,13.2,13.199,217.243162]
[1672909097563,139.02315776,13.2,13.199,217.243162]
[1672909102852,82.16315776,13.2,13.199,217.243162]
[1672909104443,34.23248116,13.2,13.199,217.243162]
[1672909110943,72.8611013,13.208,13.2,20.0]
[1672909111371,43.18287168,13.207,13.2,20.0]
[1672909111898,43.18287168,13.207,13.199,217.243162]
[1672909119251,56.83,13.206,13.199,217.243162]
[1672909119771,56.82,13.208,13.199,217.243162]
[1672909120098,43.18287168,13.205,13.199,217.243162]
[1672909121973,42.68287168,13.205,13.199,217.243162]
[1672909133866,97.5756104,13.208,13.199,217.243162]
[1672909134179,42.68287168,13.207,13.199,217.243162]
[1672909134385,20.0,13.206,13.199,217.243162]
[1672909134710,40.7556104,13.207,13.199,217.243162]
[1672909135017,42.68287168,13.205,13.199,217.243162]
[1672909141330,83.43848208,13.205,13.199,217.243162]
[1672909142476,52.63609407,13.204,13.199,217.243162]
[1672909142685,95.36229909,13.204,13.199,217.243162]
[1672909149756,52.63609407,13.204,13.199,217.243162]
[1672909149943,93.39170447,13.204,13.199,217.243162]
[1672909150159,42.72620502,13.203,13.199,217.243162]
[1672909152179,83.48181542,13.203,13.199,217.243162]
[1672909152792,136.11790949,13.203,13.199,217.243162]
[1672909153544,106.84475992,13.203,13.199,217.243162]
[1672909153858,42.72620502,13.202,13.199,217.243162]
[1672909154461,95.36229909,13.202,13.199,217.243162]
[1672909156999,42.72620502,13.202,13.199,217.243162]
[1672909158063,52.63609407,13.206,13.2,20.0]
[1672909158495,66.08914952,13.206,13.2,20.0]
[1672909159203,13.45305545,13.206,13.2,20.0]
[1672909159412,52.63609407,13.205,13.2,20.0]
[1672909159853,66.08914952,13.205,13.199,217.243162]
[1672909160061,52.63609407,13.205,13.199,217.243162]
[1672909163191,11.71620502,13.206,13.199,217.243162]
[1672909163406,6.61,13.21,13.201,20.0]
[1672909163626,6.61,13.21,13.203,20.0]
[1672909163839,6.61,13.21,13.204,84.95675539]
[1672909164054,6.61,13.21,13.205,20.0]
[1672909164247,14.58610083,13.213,13.207,20.0]
[1672909164457,14.58610083,13.213,13.208,28.11675539]
[1672909164668,28.03915628,13.213,13.208,28.11675539]
[1672909168558,28.03915628,13.213,13.207,20.0]
[1672909168874,28.03915628,13.213,13.208,28.11675539]
[1672909173404,28.03915628,13.213,13.207,20.0]
[1672909173616,28.03915628,13.213,13.208,28.11675539]
[1672909173830,28.03915628,13.213,13.207,20.0]
[1672909175844,28.03915628,13.213,13.206,20.0]
[1672909180353,14.58610083,13.213,13.206,20.0]
[1672909180777,56.8,13.214,13.206,20.0]
[1672909182363,28.04254988,13.215,13.206,20.0]
[1672909182789,28.04254988,13.215,13.208,20.0]
[1672909183210,14.58610083,13.215,13.208,20.0]
[1672909186257,14.58610083,13.215,13.207,56.83]
[1672909186441,114.6990032,13.214,13.204,171.1803]
[1672909186657,6.49,13.21,13.204,114.3403]
[1672909188665,6.49,13.21,13.206,20.0]
[1672909188877,56.78,13.218,13.206,20.0]
[1672909189089,7.6527675,13.214,13.207,56.83]
[1672909189497,7.6527675,13.214,13.206,76.83]
[1672909189716,21.10921655,13.214,13.206,76.83]
[1672909190432,21.10921655,13.214,13.206,56.83]
[1672909192871,21.10921655,13.214,13.205,56.84]
[1672909193082,21.10921655,13.214,13.206,20.0]
[1672909194135,21.10921655,13.214,13.205,76.84]
[1672909194668,21.10921655,13.214,13.205,56.84]
[1672909195197,56.8,13.213,13.204,114.3403]
[1672909195406,6.54,13.21,13.206,20.0]
[1672909195614,21.10921655,13.214,13.206,20.0]
[1672909197198,21.10921655,13.214,13.205,76.84]
[1672909198236,21.10921655,13.214,13.205,56.84]
[1672909203266,7.6527675,13.214,13.205,56.84]
[1672909203481,56.78,13.218,13.206,20.0]
[1672909203811,13.45644905,13.216,13.206,20.0]
[1672909204441,13.45644905,13.216,13.206,76.83]
[1672909204761,56.78,13.218,13.206,76.83]
[1672909206216,70.23644905,13.218,13.206,76.83]
[1672909208141,70.23644905,13.218,13.206,56.83]
[1672909208334,70.23644905,13.218,13.205,56.84]
[1672909208877,77.02308469,13.217,13.205,56.84]
[1672909209072,56.79,13.216,13.204,114.3403]
[1672909209286,6.54,13.21,13.204,114.3403]
[1672909210225,32.65,13.21,13.204,114.3403]
[1672909213184,32.65,13.21,13.202,110.4184]
[1672909213404,103.12953374,13.21,13.2,165.1397]
[1672909213602,56.82,13.209,13.2,165.1397]
[1672909214134,57.02308469,13.208,13.2,56.86]
[1672909216853,57.02308469,13.208,13.197,56.87]
[1672909217587,57.02308469,13.208,13.2,76.86]
[1672909217799,57.02308469,13.208,13.2,56.86]
[1672909219268,57.02308469,13.208,13.201,20.0]
[1672909219479,6.54,13.21,13.202,56.85]
[1672909219905,6.54,13.21,13.203,20.0]
[1672909220126,6.54,13.21,13.205,20.0]
[1672909220334,57.02308469,13.212,13.205,20.0]
[1672909220747,53.38222082,13.214,13.206,56.83]
[1672909220958,53.38222082,13.214,13.207,20.0]
[1672909221493,53.38222082,13.214,13.206,56.83]
[1672909221494,4.55150367,13.214,13.206,56.83]
[1672909222864,56.79,13.216,13.206,56.83]
[1672909223072,109.26158102,13.216,13.205,20.0]
[1672909223259,109.26158102,13.216,13.206,56.83]
[1672909224108,109.26158102,13.216,13.205,20.0]
[1672909224305,109.26158102,13.216,13.206,56.83]
[1672909224516,109.26158102,13.216,13.205,20.0]
[1672909226004,122.71803007,13.216,13.204,56.84]
[1672909226221,173.60025089,13.216,13.215,210.703162]
[1672909230945,120.21803007,13.216,13.215,210.703162]
[1672909231380,67.74644905,13.216,13.215,210.703162]
[1672909232103,13.45644905,13.216,13.215,210.703162]
[1672909237771,30.312326,13.217,13.215,210.703162]
[1672909239147,43.16170201,13.217,13.215,210.703162]
[1672909239354,78.63497085,13.217,13.215,210.703162]
[1672909239580,92.0914199,13.217,13.215,210.703162]
[1672909242218,92.0914199,13.217,13.216,210.703162]
[1672909242606,92.0914199,13.217,13.216,90.463162]
[1672909242813,92.0914199,13.217,13.216,30.343162]
[1672909243029,78.63497085,13.217,13.21,56.81]
[1672909244732,30.312326,13.217,13.211,20.0]
[1672909244935,30.312326,13.217,13.213,20.0]
[1672909246309,30.312326,13.217,13.212,56.81]
[1672909247653,43.16170201,13.217,13.212,56.81]
[1672909247984,76.63497085,13.217,13.212,56.81]
[1672909248197,76.63497053,13.217,13.212,56.81]
[1672909249878,76.63497053,13.217,13.211,76.81]
[1672909252613,76.63497053,13.217,13.211,56.81]
[1672909253136,139.78569713,13.217,13.209,116.8585]
[1672909253534,139.78569713,13.217,13.209,173.6785]
[1672909255760,139.28569713,13.217,13.209,173.6785]
[1672909255991,111.47337145,13.217,13.21,20.0]
[1672909256191,111.47337145,13.217,13.209,116.8585]
[1672909257239,98.0169224,13.217,13.21,20.0]
[1672909260798,48.32264485,13.217,13.21,20.0]
[1672909261217,56.78,13.219,13.209,116.8585]
[1672909261639,13.45644905,13.218,13.209,116.8585]
[1672909262281,56.78,13.219,13.209,173.6785]
[1672909262469,56.78,13.219,13.21,20.0]
[1672909264802,70.23644905,13.219,13.21,20.0]
[1672909265424,13.45644905,13.219,13.212,20.0]
[1672909265853,32.59,13.22,13.212,20.0]
[1672909267324,56.78,13.219,13.212,20.0]
[1672909267967,56.78,13.219,13.21,76.81]
[1672909268359,70.23644905,13.219,13.21,76.81]
[1672909268569,70.23644905,13.219,13.21,20.0]
[1672909269731,70.23644905,13.219,13.209,173.6785]
[1672909270374,70.23644905,13.219,13.21,20.0]
[1672909271042,56.78,13.219,13.21,20.0]
[1672909271193,32.59,13.22,13.21,20.0]
[1672909271194,6.49,13.22,13.211,56.81]
[1672909271404,6.49,13.22,13.212,20.0]
[1672909276344,6.49,13.22,13.214,20.0]
[1672909278800,56.75,13.224,13.214,20.0]
[1672909278983,13.45644905,13.226,13.214,138.2228]
[1672909279197,56.75,13.225,13.214,138.2228]
[1672909279737,70.20644905,13.225,13.214,138.2228]
[1672909280568,70.20644905,13.225,13.214,364.7228]
[1672909280986,70.20644905,13.225,13.216,20.0]
[1672909281837,70.20644905,13.225,13.215,56.79]
[1672909282052,6.54,13.22,13.214,118.2228]
[1672909282371,19.99644905,13.22,13.214,118.2228]
[1672909283092,13.45644905,13.22,13.215,20.0]
[1672909284022,13.45644905,13.22,13.214,118.2228]
[1672909285709,19.99644905,13.22,13.214,118.2228]
[1672909285925,46.24644905,13.22,13.214,118.2228]
[1672909287912,46.24644905,13.22,13.21,56.81]
[1672909288127,56.78,13.219,13.21,109.9579]
[1672909288449,13.45644905,13.218,13.21,166.7679]
[1672909288869,13.45644905,13.218,13.21,109.9579]
[1672909291079,18.79667007,13.218,13.21,109.9579]
[1672909291482,13.45644905,13.217,13.21,109.9579]
[1672909292764,70.23644905,13.217,13.204,283.34]
[1672909292961,6.48,13.21,13.204,283.34]
[1672909293712,19.93644905,13.21,13.204,283.34]
[1672909294022,36.785138,13.21,13.204,283.34]
[1672909295371,30.305138,13.21,13.204,283.34]
[1672909295586,13.45644905,13.216,13.205,20.0]
[1672909295817,13.45644905,13.216,13.207,226.5]
[1672909296027,13.45644905,13.216,13.209,20.0]
[1672909296215,13.45644905,13.216,13.211,20.0]
[1672909301500,13.45644905,13.219,13.211,20.0]
[1672909303486,13.45644905,13.219,13.213,20.0]
[1672909305396,13.45644905,13.219,13.212,56.81]
[1672909308112,49.40810726,13.22,13.212,56.81]
[1672909308319,13.45644905,13.219,13.212,56.81]
[1672909312315,13.45644905,13.219,13.211,56.81]
[1672909312520,49.40810726,13.22,13.21,283.31]
[1672909312734,49.40810726,13.22,13.211,20.0]